[Event "*** Titled Tuesday 3|2 Blitz (Late)"]
[Site "Chess.com"]
[Date "2017.01.03"]
[Round "1"]
[White "lrj2011"]
[Black "iturrizaga"]
[Result "0-1"]
[WhiteElo "2309"]
[BlackElo "2681"]
[TimeControl "180+2"]
[EndTime "17:09:27 PST"]
[Termination "iturrizaga won by resignation"]

1. e4 {[%clk 0:03:02]} 1... c5 {[%clk 0:03:00.7]} 2. Nf3 {[%clk 0:03:03]} 2...
g6 {[%clk 0:03:02.1]} 3. d4 {[%clk 0:03:04.3]} 3... cxd4 {[%clk 0:03:04]} 4.
Nxd4 {[%clk 0:03:06.2]} 4... Nc6 {[%clk 0:03:05.3]} 5. Nc3 {[%clk 0:03:07.7]}
5... Bg7 {[%clk 0:03:06.7]} 6. Be3 {[%clk 0:03:09.2]} 6... Nf6 {[%clk
0:03:08.3]} 7. Bc4 {[%clk 0:03:10.1]} 7... O-O {[%clk 0:03:09.8]} 8. Bb3 {[%clk
0:03:10.2]} 8... a5 {[%clk 0:03:11.3]} 9. O-O {[%clk 0:03:09.5]} 9... d6 {[%clk
0:03:12.9]} 10. Ndb5 {[%clk 0:02:47.4]} 10... b6 {[%clk 0:03:13.5]} 11. a4
{[%clk 0:02:47.1]} 11... Ba6 {[%clk 0:03:14.6]} 12. f4 {[%clk 0:02:35.6]} 12...
Nd7 {[%clk 0:03:15.1]} 13. Qf3 {[%clk 0:02:31.1]} 13... Rc8 {[%clk 0:03:15.5]}
14. Rad1 {[%clk 0:02:24.4]} 14... Nc5 {[%clk 0:03:16.1]} 15. Bd5 {[%clk
0:02:21.9]} 15... Nb4 {[%clk 0:03:16.3]} 16. f5 {[%clk 0:02:12.4]} 16... Nxc2
{[%clk 0:03:11.9]} 17. fxg6 {[%clk 0:02:12.2]} 17... e6 {[%clk 0:03:02]} 18.
gxf7+ {[%clk 0:02:01.4]} 18... Kh8 {[%clk 0:03:03.4]} 19. Bxc5 {[%clk
0:02:02.9]} 19... exd5 {[%clk 0:02:30.6]} 20. Bxd6 {[%clk 0:01:51.6]} 20... d4
{[%clk 0:02:29.1]} 21. Bxf8 {[%clk 0:01:51]} 21... Qxf8 {[%clk 0:02:31]} 22. Nd5
{[%clk 0:01:29.7]} 22... Qc5 {[%clk 0:02:31.8]} 23. Nf6 {[%clk 0:01:19]} 23...
Ne3 {[%clk 0:02:08.4]} 24. Qh3 {[%clk 0:01:12.2]} 24... Bxf6 {[%clk 0:01:17.6]}
25. Rxf6 {[%clk 0:01:14.1]} 25... Rf8 {[%clk 0:01:18.1]} 26. Rxd4 {[%clk
0:01:05.2]} 26... Qc1+ {[%clk 0:00:29.8]} 27. Kf2 {[%clk 0:01:05.5]} 27... Bxb5
{[%clk 0:00:30.8]} 28. axb5 {[%clk 0:00:45.4]} 28... Qxb2+ {[%clk 0:00:17.4]}
29. Kxe3 {[%clk 0:00:45.7]} 29... Qc3+ {[%clk 0:00:19.1]} 30. Kf4 {[%clk
0:00:40.9]} 30... Qxd4 {[%clk 0:00:20.7]} 31. Qe6 {[%clk 0:00:42]} 31... Qf2+
{[%clk 0:00:21.1]} 32. Ke5 {[%clk 0:00:42.5]} 32... Qc5+ {[%clk 0:00:18.3]} 33.
Qd5 {[%clk 0:00:42.5]} 33... Qe7+ {[%clk 0:00:17.1]} 34. Kf5 {[%clk 0:00:43]}
34... Kg7 {[%clk 0:00:16.8]} 35. Qd4 {[%clk 0:00:21.3]} 35... Rxf7 {[%clk
0:00:12.2]} 36. Rxf7+ {[%clk 0:00:22.5]} 36... Kxf7 {[%clk 0:00:14.1]} 37. Qxb6
{[%clk 0:00:24.1]} 37... Qd7+ {[%clk 0:00:15.7]} 38. Kf4 {[%clk 0:00:24.3]}
38... Qd2+ {[%clk 0:00:16.8]} 39. Kf5 {[%clk 0:00:24.5]} 39... Qd7+ {[%clk
0:00:17.3]} 40. Kf4 {[%clk 0:00:25.7]} 40... Qd2+ {[%clk 0:00:17.8]} 41. Kf3
{[%clk 0:00:27.1]} 41... Qd3+ {[%clk 0:00:17.4]} 42. Qe3 {[%clk 0:00:25.5]}
42... Qxb5 {[%clk 0:00:17.8]} 43. Qf4+ {[%clk 0:00:26.8]} 43... Ke7 {[%clk
0:00:17.3]} 44. Qe3 {[%clk 0:00:26.8]} 44... a4 {[%clk 0:00:18]} 45. Qa7+ {[%clk
0:00:28]} 45... Qd7 {[%clk 0:00:17]} 46. Qa5 {[%clk 0:00:26.5]} 46... Qd3+
{[%clk 0:00:17.2]} 47. Kf4 {[%clk 0:00:25.9]} 47... a3 {[%clk 0:00:18.7]} 48.
Qa7+ {[%clk 0:00:25.7]} 48... Ke6 {[%clk 0:00:17.7]} 49. Qb6+ {[%clk 0:00:26.6]}
49... Qd6+ {[%clk 0:00:18.6]} 50. Qxd6+ {[%clk 0:00:25.4]} 50... Kxd6 {[%clk
0:00:20.5]} 51. e5+ {[%clk 0:00:27.3]} 51... Ke6 {[%clk 0:00:21.7]} 0-1

[Event "*** Titled Tuesday 3|2 Blitz (Late)"]
[Site "Chess.com"]
[Date "2017.01.03"]
[Round "1"]
[White "rithwik2002"]
[Black "bugsbunny444"]
[Result "0-1"]
[WhiteElo "1712"]
[BlackElo "2336"]
[TimeControl "180+2"]
[EndTime "17:09:36 PST"]
[Termination "bugsbunny444 won by checkmate"]

1. d4 {[%clk 0:02:57.5]} 1... e6 {[%clk 0:03:00.3]} 2. e4 {[%clk 0:02:55]} 2...
d5 {[%clk 0:02:57.9]} 3. Nc3 {[%clk 0:02:54.1]} 3... Nf6 {[%clk 0:02:58.7]} 4.
e5 {[%clk 0:02:52.9]} 4... Nfd7 {[%clk 0:02:59.9]} 5. Nce2 {[%clk 0:02:53.6]}
5... c5 {[%clk 0:03:00.5]} 6. c3 {[%clk 0:02:54.3]} 6... cxd4 {[%clk 0:02:57.8]}
7. cxd4 {[%clk 0:02:53.5]} 7... f6 {[%clk 0:02:59.3]} 8. Nf4 {[%clk 0:02:53.4]}
8... Bb4+ {[%clk 0:02:56.4]} 9. Bd2 {[%clk 0:02:53.7]} 9... Qb6 {[%clk
0:02:57.8]} 10. Bxb4 {[%clk 0:02:54.3]} 10... Qxb4+ {[%clk 0:02:58.6]} 11. Qd2
{[%clk 0:02:56]} 11... Qxd2+ {[%clk 0:02:59.3]} 12. Kxd2 {[%clk 0:02:57.9]}
12... Nb6 {[%clk 0:02:55.8]} 13. Bb5+ {[%clk 0:01:50.2]} 13... Ke7 {[%clk
0:02:53.9]} 14. Nf3 {[%clk 0:01:49.4]} 14... a6 {[%clk 0:02:47.3]} 15. Bd3
{[%clk 0:01:48.6]} 15... Nc6 {[%clk 0:02:39.9]} 16. exf6+ {[%clk 0:01:45.4]}
16... gxf6 {[%clk 0:02:39.3]} 17. Rhe1 {[%clk 0:01:42.2]} 17... Kd6 {[%clk
0:02:40]} 18. Nh5 {[%clk 0:01:29.1]} 18... e5 {[%clk 0:02:09.7]} 19. Nxf6 {[%clk
0:01:19.4]} 19... e4 {[%clk 0:02:06.4]} 20. Ng5 {[%clk 0:01:19.6]} 20... Rf8
{[%clk 0:01:43.4]} 21. Ngxh7 {[%clk 0:01:10]} 21... Rf7 {[%clk 0:01:08]} 22.
Bxe4 {[%clk 0:01:05.4]} 22... dxe4 {[%clk 0:01:07.7]} 23. Nxe4+ {[%clk
0:01:07.3]} 23... Kc7 {[%clk 0:00:51.2]} 24. Nhg5 {[%clk 0:01:06.2]} 24... Rg7
{[%clk 0:00:39.2]} 25. f4 {[%clk 0:00:59.4]} 25... Nxd4 {[%clk 0:00:26.9]} 26.
Rac1+ {[%clk 0:00:53.8]} 26... Nc6 {[%clk 0:00:28]} 27. Nc5 {[%clk 0:00:50.7]}
27... Rg6 {[%clk 0:00:18.6]} 28. Nce6+ {[%clk 0:00:39.8]} 28... Bxe6 {[%clk
0:00:18.9]} 29. Nxe6+ {[%clk 0:00:37.5]} 29... Kd6 {[%clk 0:00:15.1]} 30. Ng5
{[%clk 0:00:34.5]} 30... Rf8 {[%clk 0:00:11.9]} 31. g3 {[%clk 0:00:33.1]} 31...
Kc7 {[%clk 0:00:12.7]} 32. Ne6+ {[%clk 0:00:30.7]} 32... Rxe6 {[%clk 0:00:13.3]}
33. Rxe6 {[%clk 0:00:32.5]} 33... Rh8 {[%clk 0:00:07]} 34. Re2 {[%clk
0:00:30.3]} 34... Kd6 {[%clk 0:00:06.9]} 35. a3 {[%clk 0:00:29]} 35... Nd4
{[%clk 0:00:07.8]} 36. Rf2 {[%clk 0:00:11.4]} 36... Nb3+ {[%clk 0:00:08.6]} 37.
Kc2 {[%clk 0:00:12.4]} 37... Nxc1 {[%clk 0:00:10.5]} 38. Kxc1 {[%clk 0:00:13.9]}
38... Nd5 {[%clk 0:00:08.9]} 39. Kd2 {[%clk 0:00:13.7]} 39... Kc5 {[%clk
0:00:08.7]} 40. b4+ {[%clk 0:00:13.3]} 40... Kd4 {[%clk 0:00:09.8]} 41. Re2
{[%clk 0:00:13.3]} 41... Nc3 {[%clk 0:00:06.9]} 42. Re7 {[%clk 0:00:11.6]} 42...
Rxh2+ {[%clk 0:00:06.5]} 43. Kc1 {[%clk 0:00:12.7]} 43... b5 {[%clk 0:00:05.5]}
44. Rd7+ {[%clk 0:00:13]} 44... Nd5 {[%clk 0:00:06.9]} 45. Re7 {[%clk
0:00:11.9]} 45... Rg2 {[%clk 0:00:07.3]} 46. Ra7 {[%clk 0:00:09.8]} 46... Kc3
{[%clk 0:00:04.9]} 47. Kb1 {[%clk 0:00:07.8]} 47... Kb3 {[%clk 0:00:05.3]} 48.
Kc1 {[%clk 0:00:08.3]} 48... Nc3 {[%clk 0:00:05.7]} 49. Rxa6 {[%clk 0:00:06.9]}
49... Rc2# {[%clk 0:00:06.8]} 0-1

[Event "*** Titled Tuesday 3|2 Blitz (Late)"]
[Site "Chess.com"]
[Date "2017.01.03"]
[Round "1"]
[White "boredoldman"]
[Black "SabinaFoisor"]
[Result "1-0"]
[WhiteElo "2501"]
[BlackElo "2207"]
[TimeControl "180+2"]
[EndTime "17:09:52 PST"]
[Termination "boredoldman won by resignation"]

1. d4 {[%clk 0:02:59.5]} 1... d5 {[%clk 0:03:00.3]} 2. c4 {[%clk 0:02:54.8]}
2... e6 {[%clk 0:03:00.6]} 3. Nc3 {[%clk 0:02:54.5]} 3... Nf6 {[%clk 0:03:00.8]}
4. Nf3 {[%clk 0:02:55.4]} 4... Be7 {[%clk 0:03:00.7]} 5. Bf4 {[%clk 0:02:53.3]}
5... O-O {[%clk 0:03:00.6]} 6. e3 {[%clk 0:02:54.6]} 6... c5 {[%clk 0:02:57.4]}
7. Bd3 {[%clk 0:02:41.1]} 7... dxc4 {[%clk 0:02:51.1]} 8. Bxc4 {[%clk 0:02:43]}
8... Nc6 {[%clk 0:02:47.1]} 9. O-O {[%clk 0:02:39.2]} 9... a6 {[%clk 0:02:47.7]}
10. dxc5 {[%clk 0:02:21.5]} 10... Bxc5 {[%clk 0:02:41.9]} 11. a3 {[%clk
0:02:20.8]} 11... b5 {[%clk 0:02:40.8]} 12. Bd3 {[%clk 0:02:21.9]} 12... Bb7
{[%clk 0:02:40.1]} 13. Qc2 {[%clk 0:02:23.1]} 13... Bd6 {[%clk 0:02:36]} 14.
Rfd1 {[%clk 0:02:20.4]} 14... Kh8 {[%clk 0:01:57.8]} 15. Be4 {[%clk 0:02:07.9]}
15... Ne8 {[%clk 0:01:42.6]} 16. Ng5 {[%clk 0:02:00.9]} 16... g6 {[%clk
0:01:32.1]} 17. Bxc6 {[%clk 0:01:59]} 17... Bxc6 {[%clk 0:01:30.1]} 18. Nge4
{[%clk 0:02:00.7]} 18... Bxe4 {[%clk 0:00:58]} 19. Nxe4 {[%clk 0:02:02.6]} 19...
Qc7 {[%clk 0:00:57.8]} 20. Qxc7 {[%clk 0:02:02.7]} 20... Bxc7 {[%clk 0:00:59.3]}
21. Bxc7 {[%clk 0:02:04.2]} 21... Nxc7 {[%clk 0:00:57.8]} 22. Rac1 {[%clk
0:01:44.2]} 22... Nd5 {[%clk 0:00:55.7]} 23. Nd6 {[%clk 0:01:42.3]} 23... Kg7
{[%clk 0:00:54.4]} 24. e4 {[%clk 0:01:42]} 24... Nf6 {[%clk 0:00:54.3]} 25. f3
{[%clk 0:01:40.5]} 25... Rad8 {[%clk 0:00:53.1]} 26. Kf2 {[%clk 0:01:39]} 26...
Rd7 {[%clk 0:00:52.9]} 27. Rc6 {[%clk 0:01:37.2]} 27... a5 {[%clk 0:00:51.5]}
28. g4 {[%clk 0:01:37.8]} 28... h6 {[%clk 0:00:50]} 29. Rb6 {[%clk 0:01:37.4]}
29... Rfd8 {[%clk 0:00:46]} 30. e5 {[%clk 0:01:38.2]} 30... Nd5 {[%clk
0:00:45.9]} 31. Rxb5 {[%clk 0:01:39.3]} 31... f6 {[%clk 0:00:46.7]} 32. Ne4
{[%clk 0:01:34.3]} 32... a4 {[%clk 0:00:40.4]} 33. Nc5 {[%clk 0:01:33.7]} 33...
Re7 {[%clk 0:00:36.4]} 34. Nxe6+ {[%clk 0:01:09.8]} 34... Rxe6 {[%clk
0:00:36.6]} 35. exf6+ {[%clk 0:01:09.3]} 35... Kxf6 {[%clk 0:00:35.4]} 36. Rbxd5
{[%clk 0:01:10.1]} 36... Rb8 {[%clk 0:00:31.7]} 37. R1d2 {[%clk 0:01:10.4]}
37... g5 {[%clk 0:00:27.3]} 38. Ra5 {[%clk 0:01:03]} 38... Reb6 {[%clk
0:00:26.8]} 39. Rxa4 {[%clk 0:01:04.3]} 39... Rxb2 {[%clk 0:00:27.3]} 40. Rxb2
{[%clk 0:01:06.2]} 40... Rxb2+ {[%clk 0:00:26.7]} 41. Kg3 {[%clk 0:01:08.1]}
41... Ra2 {[%clk 0:00:26.9]} 42. Ra6+ {[%clk 0:01:09.2]} 42... Kg7 {[%clk
0:00:28.1]} 43. h4 {[%clk 0:01:09.5]} 43... Kh7 {[%clk 0:00:25.8]} 44. f4 {[%clk
0:01:09.3]} 44... gxf4+ {[%clk 0:00:25.6]} 45. Kxf4 {[%clk 0:01:11.2]} 45... Kg7
{[%clk 0:00:26]} 46. Ra7+ {[%clk 0:01:04.9]} 46... Kg6 {[%clk 0:00:18.6]} 47. a4
{[%clk 0:00:45.6]} 47... Ra1 {[%clk 0:00:18.7]} 48. a5 {[%clk 0:00:46.9]} 48...
Ra4+ {[%clk 0:00:19.6]} 49. Kf3 {[%clk 0:00:47.4]} 49... Ra3+ {[%clk 0:00:20.7]}
50. Kf2 {[%clk 0:00:47.2]} 50... Ra4 {[%clk 0:00:21.7]} 51. Ra8 {[%clk
0:00:46.2]} 51... Kg7 {[%clk 0:00:20.7]} 52. Kf3 {[%clk 0:00:41.5]} 52... Ra3+
{[%clk 0:00:21.7]} 53. Kf4 {[%clk 0:00:43]} 53... Ra4+ {[%clk 0:00:23.3]} 54.
Kf5 {[%clk 0:00:44.5]} 54... Ra1 {[%clk 0:00:22.4]} 55. Ra7+ {[%clk 0:00:45.9]}
55... Kf8 {[%clk 0:00:21.3]} 56. Kg6 {[%clk 0:00:45.9]} 56... Ra4 {[%clk
0:00:22]} 57. Kxh6 {[%clk 0:00:45.4]} 57... Rxg4 {[%clk 0:00:21.4]} 58. h5
{[%clk 0:00:47.1]} 58... Kg8 {[%clk 0:00:20.3]} 59. a6 {[%clk 0:00:42.4]} 59...
Rb4 {[%clk 0:00:20.3]} 60. Rb7 {[%clk 0:00:40.8]} 60... Ra4 {[%clk 0:00:21.2]}
61. a7 {[%clk 0:00:42.1]} 61... Ra6+ {[%clk 0:00:22.3]} 62. Kg5 {[%clk
0:00:43.5]} 62... Ra5+ {[%clk 0:00:23.6]} 63. Kf6 {[%clk 0:00:44.7]} 63... Ra6+
{[%clk 0:00:24.7]} 64. Ke5 {[%clk 0:00:46]} 64... Ra5+ {[%clk 0:00:25.1]} 65.
Kd6 {[%clk 0:00:47.6]} 65... Ra6+ {[%clk 0:00:23]} 66. Kc5 {[%clk 0:00:48.5]}
66... Kh8 {[%clk 0:00:20.8]} 67. Rb8+ {[%clk 0:00:47.2]} 67... Kh7 {[%clk
0:00:21.8]} 68. a8=Q {[%clk 0:00:48.3]} 1-0

[Event "*** Titled Tuesday 3|2 Blitz (Late)"]
[Site "Chess.com"]
[Date "2017.01.03"]
[Round "1"]
[White "andresgv36"]
[Black "Ar4uha"]
[Result "1-0"]
[WhiteElo "2326"]
[BlackElo "1200"]
[TimeControl "180+2"]
[EndTime "17:10:13 PST"]
[Termination "andresgv36 won by resignation"]

1. Nf3 {[%clk 0:02:55.7]} 1... Nf6 {[%clk 0:02:59.3]} 2. c4 {[%clk 0:02:55.3]}
2... e6 {[%clk 0:03:00.1]} 3. Nc3 {[%clk 0:02:55.8]} 3... Bb4 {[%clk 0:02:59.4]}
4. Qc2 {[%clk 0:02:52.4]} 4... O-O {[%clk 0:02:58.5]} 5. d4 {[%clk 0:02:52.3]}
5... b6 {[%clk 0:02:57]} 6. e4 {[%clk 0:02:48]} 6... Bb7 {[%clk 0:02:54.2]} 7.
e5 {[%clk 0:02:45.6]} 7... Ne4 {[%clk 0:02:54]} 8. Bd3 {[%clk 0:02:46.4]} 8...
f5 {[%clk 0:02:54.2]} 9. Nd2 {[%clk 0:02:07.9]} 9... Bxc3 {[%clk 0:02:52.2]} 10.
bxc3 {[%clk 0:02:07.8]} 10... Qh4 {[%clk 0:01:59.8]} 11. Nxe4 {[%clk 0:01:53.5]}
11... fxe4 {[%clk 0:01:59.8]} 12. Bf1 {[%clk 0:01:55.2]} 12... d6 {[%clk
0:01:49.7]} 13. exd6 {[%clk 0:01:53]} 13... cxd6 {[%clk 0:01:48]} 14. Be3 {[%clk
0:01:44.9]} 14... Nd7 {[%clk 0:01:45.3]} 15. Be2 {[%clk 0:01:39.1]} 15... Nf6
{[%clk 0:01:43.1]} 16. O-O {[%clk 0:01:37.4]} 16... Ng4 {[%clk 0:01:31.6]} 17.
Bxg4 {[%clk 0:01:38.1]} 17... Qxg4 {[%clk 0:01:32.9]} 18. a4 {[%clk 0:01:29.1]}
18... Ba6 {[%clk 0:01:24.6]} 19. Qb3 {[%clk 0:01:06.4]} 19... Rac8 {[%clk
0:01:23.3]} 20. Rfe1 {[%clk 0:01:06]} 20... Bxc4 {[%clk 0:01:23.5]} 21. Qb4
{[%clk 0:01:07.3]} 21... d5 {[%clk 0:01:19.1]} 22. Qd6 {[%clk 0:00:59.7]} 22...
Rce8 {[%clk 0:01:07.9]} 23. a5 {[%clk 0:00:51]} 23... b5 {[%clk 0:01:07]} 24. a6
{[%clk 0:00:52.2]} 24... h5 {[%clk 0:01:02.4]} 25. Qd7 {[%clk 0:00:50.4]} 25...
Ra8 {[%clk 0:00:56.3]} 26. h3 {[%clk 0:00:47.2]} 26... Qg6 {[%clk 0:00:56.8]}
27. Kh2 {[%clk 0:00:43.9]} 27... Rf7 {[%clk 0:00:52.6]} 28. Qd6 {[%clk
0:00:43.1]} 28... Raf8 {[%clk 0:00:53.7]} 29. Rg1 {[%clk 0:00:40]} 29... Rf5
{[%clk 0:00:53.1]} 30. Qc7 {[%clk 0:00:38.2]} 30... R8f7 {[%clk 0:00:53.9]} 31.
Qb8+ {[%clk 0:00:34.3]} 31... Kh7 {[%clk 0:00:55]} 32. Rad1 {[%clk 0:00:32.3]}
32... h4 {[%clk 0:00:54.6]} 33. Rd2 {[%clk 0:00:33.1]} 33... Qf6 {[%clk
0:00:49.6]} 34. Qd6 {[%clk 0:00:26]} 34... e5 {[%clk 0:00:48.1]} 35. Qxf6 {[%clk
0:00:26.5]} 35... gxf6 {[%clk 0:00:48.3]} 36. dxe5 {[%clk 0:00:26.9]} 36... fxe5
{[%clk 0:00:48.7]} 37. g3 {[%clk 0:00:15.5]} 37... hxg3+ {[%clk 0:00:49.2]} 38.
Rxg3 {[%clk 0:00:16.8]} 38... R5f6 {[%clk 0:00:47.6]} 39. Kg2 {[%clk 0:00:17.8]}
39... Rxa6 {[%clk 0:00:46.6]} 40. Rb2 {[%clk 0:00:18]} 40... Ra1 {[%clk
0:00:46.3]} 41. h4 {[%clk 0:00:18.4]} 41... a5 {[%clk 0:00:46.8]} 42. Rg5 {[%clk
0:00:19.3]} 42... Rg7 {[%clk 0:00:47.8]} 43. Kg3 {[%clk 0:00:14.4]} 43... Rxg5+
{[%clk 0:00:48.1]} 44. hxg5 {[%clk 0:00:14.5]} 44... a4 {[%clk 0:00:49.3]} 45.
Kg4 {[%clk 0:00:15.8]} 45... Kg6 {[%clk 0:00:50.3]} 46. f4 {[%clk 0:00:15.7]}
46... exf4 {[%clk 0:00:42.6]} 47. Kxf4 {[%clk 0:00:16.4]} 47... Rh1 {[%clk
0:00:38.8]} 48. Bc5 {[%clk 0:00:14.9]} 48... Rf1+ {[%clk 0:00:35.4]} 49. Kg4
{[%clk 0:00:13.9]} 49... e3 {[%clk 0:00:35.6]} 50. Bxe3 {[%clk 0:00:14.2]} 50...
a3 {[%clk 0:00:36]} 51. Rh2 {[%clk 0:00:11.4]} 51... Be2+ {[%clk 0:00:35.8]} 52.
Rxe2 {[%clk 0:00:11.2]} 52... Ra1 {[%clk 0:00:31]} 53. Bd4 {[%clk 0:00:09.9]}
53... a2 {[%clk 0:00:32]} 54. Re6+ {[%clk 0:00:09]} 54... Kf7 {[%clk 0:00:31.9]}
55. Ra6 {[%clk 0:00:09.8]} 55... b4 {[%clk 0:00:27.1]} 56. g6+ {[%clk
0:00:08.8]} 56... Ke7 {[%clk 0:00:26.6]} 57. g7 {[%clk 0:00:10]} 57... Kf7
{[%clk 0:00:18.3]} 58. Ra7+ {[%clk 0:00:10.6]} 1-0

[Event "*** Titled Tuesday 3|2 Blitz (Late)"]
[Site "Chess.com"]
[Date "2017.01.03"]
[Round "1"]
[White "Abrito99"]
[Black "Genghis_K"]
[Result "1/2-1/2"]
[WhiteElo "2329"]
[BlackElo "2716"]
[TimeControl "180+2"]
[EndTime "17:10:48 PST"]
[Termination "Game drawn - insufficient material"]

1. e4 {[%clk 0:02:57.1]} 1... c5 {[%clk 0:03:00.1]} 2. Nf3 {[%clk 0:02:52.6]}
2... Nc6 {[%clk 0:03:01.4]} 3. d4 {[%clk 0:02:52.7]} 3... cxd4 {[%clk
0:03:02.7]} 4. c3 {[%clk 0:02:54.2]} 4... Nf6 {[%clk 0:03:01.7]} 5. e5 {[%clk
0:02:54.6]} 5... Nd5 {[%clk 0:03:03.4]} 6. Bc4 {[%clk 0:02:56.2]} 6... Nb6
{[%clk 0:03:03.2]} 7. Bb3 {[%clk 0:02:57.7]} 7... g6 {[%clk 0:02:53.3]} 8. Ng5
{[%clk 0:02:23.1]} 8... d5 {[%clk 0:02:18.7]} 9. exd6 {[%clk 0:02:03.4]} 9... e6
{[%clk 0:02:18]} 10. O-O {[%clk 0:02:01.3]} 10... Bxd6 {[%clk 0:02:12]} 11. Nf3
{[%clk 0:01:59.2]} 11... Bf8 {[%clk 0:02:04.7]} 12. cxd4 {[%clk 0:01:56.2]}
12... Bg7 {[%clk 0:02:06.2]} 13. Be3 {[%clk 0:01:52]} 13... O-O {[%clk
0:02:06.7]} 14. Nc3 {[%clk 0:01:49.3]} 14... Na5 {[%clk 0:02:04.3]} 15. Re1
{[%clk 0:01:38.7]} 15... Nxb3 {[%clk 0:02:03.7]} 16. Qxb3 {[%clk 0:01:36.8]}
16... Bd7 {[%clk 0:02:05.3]} 17. Rad1 {[%clk 0:01:30.8]} 17... Bc6 {[%clk
0:02:05.4]} 18. Ne5 {[%clk 0:01:29.9]} 18... Bd5 {[%clk 0:02:04.2]} 19. Qc2
{[%clk 0:01:30]} 19... Rc8 {[%clk 0:01:58.9]} 20. Qe2 {[%clk 0:01:18.8]} 20...
Qe7 {[%clk 0:01:57.7]} 21. Rc1 {[%clk 0:01:15.2]} 21... a6 {[%clk 0:01:48.5]}
22. b3 {[%clk 0:01:16]} 22... Rc7 {[%clk 0:01:46.8]} 23. Qd2 {[%clk 0:01:13.1]}
23... Rfc8 {[%clk 0:01:45.4]} 24. Bf4 {[%clk 0:01:13.2]} 24... Qb4 {[%clk
0:01:27.9]} 25. Nd3 {[%clk 0:01:07.8]} 25... Qxc3 {[%clk 0:01:25.1]} 26. Rxc3
{[%clk 0:01:07.1]} 26... Rxc3 {[%clk 0:01:27]} 27. Nc5 {[%clk 0:01:01.3]} 27...
Bxd4 {[%clk 0:01:19.8]} 28. Qxd4 {[%clk 0:01:01.6]} 28... R3xc5 {[%clk 0:01:01]}
29. Bh6 {[%clk 0:01:01.1]} 29... f6 {[%clk 0:01:02.6]} 30. Qxf6 {[%clk
0:00:58.9]} 30... R5c7 {[%clk 0:01:04.1]} 31. Qd4 {[%clk 0:00:45.2]} 31... Na8
{[%clk 0:00:57.6]} 32. h4 {[%clk 0:00:42]} 32... Rf7 {[%clk 0:00:56.2]} 33. h5
{[%clk 0:00:42.9]} 33... Nc7 {[%clk 0:00:51.3]} 34. hxg6 {[%clk 0:00:43.2]}
34... hxg6 {[%clk 0:00:52.7]} 35. Re3 {[%clk 0:00:40.9]} 35... Ne8 {[%clk
0:00:50.5]} 36. Rg3 {[%clk 0:00:40.9]} 36... Rf6 {[%clk 0:00:38.8]} 37. Bg5
{[%clk 0:00:38.8]} 37... Rf5 {[%clk 0:00:40]} 38. Bf4 {[%clk 0:00:33.9]} 38...
Kf7 {[%clk 0:00:38.7]} 39. Be3 {[%clk 0:00:32.8]} 39... Nf6 {[%clk 0:00:38.3]}
40. Rh3 {[%clk 0:00:33.3]} 40... Bc6 {[%clk 0:00:24.9]} 41. Rh6 {[%clk
0:00:33.2]} 41... Rd5 {[%clk 0:00:20.6]} 42. Qf4 {[%clk 0:00:31.6]} 42... Rf5
{[%clk 0:00:15]} 43. Qg3 {[%clk 0:00:24.4]} 43... g5 {[%clk 0:00:11]} 44. Qh3
{[%clk 0:00:20.5]} 44... Be4 {[%clk 0:00:08.7]} 45. f3 {[%clk 0:00:15.9]} 45...
Bd5 {[%clk 0:00:09.9]} 46. Kh2 {[%clk 0:00:16.1]} 46... Rg8 {[%clk 0:00:10.7]}
47. Bd4 {[%clk 0:00:14.3]} 47... g4 {[%clk 0:00:11.7]} 48. Qh4 {[%clk
0:00:12.5]} 48... e5 {[%clk 0:00:10.8]} 49. Bxe5 {[%clk 0:00:12.8]} 49... Rg6
{[%clk 0:00:05.9]} 50. Bxf6 {[%clk 0:00:13.9]} 50... Rfxf6 {[%clk 0:00:05.6]}
51. Rxg6 {[%clk 0:00:14.1]} 51... Rxg6 {[%clk 0:00:07.5]} 52. fxg4 {[%clk
0:00:14.7]} 52... Kg7 {[%clk 0:00:09.4]} 53. Kg3 {[%clk 0:00:15.9]} 53... Be6
{[%clk 0:00:10.4]} 54. Kf4 {[%clk 0:00:15.7]} 54... Rf6+ {[%clk 0:00:11.3]} 55.
Ke5 {[%clk 0:00:16.3]} 55... Rg6 {[%clk 0:00:12.9]} 56. g5 {[%clk 0:00:17.5]}
56... Bf7 {[%clk 0:00:14.2]} 57. Qf4 {[%clk 0:00:17.2]} 57... Re6+ {[%clk
0:00:15.2]} 58. Kd4 {[%clk 0:00:18.1]} 58... Re8 {[%clk 0:00:10]} 59. Qf6+
{[%clk 0:00:18.8]} 59... Kg8 {[%clk 0:00:11.2]} 60. g6 {[%clk 0:00:19.4]} 60...
Be6 {[%clk 0:00:12.5]} 61. g4 {[%clk 0:00:19.5]} 61... a5 {[%clk 0:00:13.5]} 62.
g5 {[%clk 0:00:20.2]} 62... b6 {[%clk 0:00:14.8]} 63. Qf4 {[%clk 0:00:19]} 63...
Rd8+ {[%clk 0:00:15.6]} 64. Ke5 {[%clk 0:00:19.9]} 64... Re8 {[%clk 0:00:17.1]}
65. Kd6 {[%clk 0:00:21]} 65... a4 {[%clk 0:00:17.5]} 66. bxa4 {[%clk 0:00:21.4]}
66... Bxa2 {[%clk 0:00:18.6]} 67. Qb4 {[%clk 0:00:22.7]} 67... Re6+ {[%clk
0:00:19.6]} 68. Kd7 {[%clk 0:00:23.8]} 68... Rxg6 {[%clk 0:00:20.6]} 69. Qe7
{[%clk 0:00:24.9]} 69... Rg7 {[%clk 0:00:21.4]} 70. Qxg7+ {[%clk 0:00:25]} 70...
Kxg7 {[%clk 0:00:23.3]} 71. Kc6 {[%clk 0:00:26.6]} 71... Bb3 {[%clk 0:00:24.2]}
72. Kxb6 {[%clk 0:00:27.3]} 72... Bxa4 {[%clk 0:00:25.8]} 73. Kc5 {[%clk
0:00:28.8]} 73... Kg6 {[%clk 0:00:26.9]} 74. Kd4 {[%clk 0:00:30.7]} 74... Kxg5
{[%clk 0:00:28.8]} 1/2-1/2

[Event "*** Titled Tuesday 3|2 Blitz (Late)"]
[Site "Chess.com"]
[Date "2017.01.03"]
[Round "2"]
[White "calemcc"]
[Black "avto24"]
[Result "0-1"]
[WhiteElo "2201"]
[BlackElo "2349"]
[TimeControl "180+2"]
[EndTime "17:15:06 PST"]
[Termination "avto24 won by resignation"]

1. d4 {[%clk 0:03:02]} 1... d5 {[%clk 0:02:58.7]} 2. c4 {[%clk 0:03:03]} 2... c6
{[%clk 0:02:58]} 3. Nc3 {[%clk 0:03:04]} 3... e6 {[%clk 0:02:58.8]} 4. e3 {[%clk
0:03:05]} 4... Nf6 {[%clk 0:02:59.3]} 5. Nf3 {[%clk 0:03:06.6]} 5... Nbd7 {[%clk
0:03:00.3]} 6. Qc2 {[%clk 0:03:08.1]} 6... Be7 {[%clk 0:02:57.9]} 7. Bd2 {[%clk
0:03:08.5]} 7... O-O {[%clk 0:02:58.3]} 8. O-O-O {[%clk 0:03:06.1]} 8... dxc4
{[%clk 0:02:58.6]} 9. Bxc4 {[%clk 0:03:06.2]} 9... b5 {[%clk 0:02:59.8]} 10. Bb3
{[%clk 0:03:07.8]} 10... a5 {[%clk 0:03:00.8]} 11. a4 {[%clk 0:03:04.9]} 11...
Qb6 {[%clk 0:02:57.7]} 12. Ne4 {[%clk 0:03:04]} 12... Bb7 {[%clk 0:02:57.1]} 13.
Nfg5 {[%clk 0:02:56.8]} 13... c5 {[%clk 0:02:47.9]} 14. dxc5 {[%clk 0:02:52.4]}
14... Bxc5 {[%clk 0:02:39.3]} 15. Nxc5 {[%clk 0:02:47.4]} 15... Nxc5 {[%clk
0:02:39.7]} 16. axb5 {[%clk 0:02:46.4]} 16... Rfc8 {[%clk 0:02:36.7]} 17. Bc4
{[%clk 0:02:47.1]} 17... Nce4 {[%clk 0:02:31.3]} 18. Be1 {[%clk 0:02:40.1]}
18... Nxg5 {[%clk 0:02:28.6]} 19. h4 {[%clk 0:02:41.3]} 19... Nge4 {[%clk
0:02:28.5]} 20. f3 {[%clk 0:02:42.1]} 20... Nd6 {[%clk 0:02:29.5]} 21. b3 {[%clk
0:02:40]} 21... Nxb5 {[%clk 0:02:28.6]} 22. g4 {[%clk 0:02:37.2]} 22... Na3
{[%clk 0:02:28.6]} 23. Qa2 {[%clk 0:02:32.8]} 23... Nxc4 {[%clk 0:02:28.1]} 24.
bxc4 {[%clk 0:02:34.7]} 24... Qxe3+ {[%clk 0:02:29.2]} 25. Bd2 {[%clk
0:02:33.3]} 25... Qxf3 {[%clk 0:02:30.3]} 26. Rhf1 {[%clk 0:02:33.6]} 26... Qxg4
{[%clk 0:02:30.8]} 0-1